[Event "Titled Tuesday Blitz May 30 Late 2023"]
[White "Bilan, Danila"]
[Black "Rangel, Daniel"]
[WhiteFideId "24161918"]
[BlackFideId "2124475"]
[WhiteElo "2182"]
[BlackElo "2256"]
[Result "1-0"]
[Round "10"]
[TimeControl "180+2"]
[Date "2023.05.31"]
[WhiteClock "0:00:18"]
[BlackClock "0:00:06"]

1. d4 {[%clk 0:03:00]}  Nf6 {[%clk 0:02:56]} 2. Nf3 {[%clk 0:03:01]}  e6 {[%clk 0:02:56]} 3. g3 {[%clk 0:03:00]}  c5 {[%clk 0:02:57]} 4. c4 {[%clk 0:02:56]}  cxd4 {[%clk 0:02:55]} 5. Nxd4 {[%clk 0:02:57]}  d6 {[%clk 0:02:55]} 6. Bg2 {[%clk 0:02:56]}  Be7 {[%clk 0:02:55]} 7. Nc3 {[%clk 0:02:56]}  O-O {[%clk 0:02:56]} 8. O-O {[%clk 0:02:56]}  a6 {[%clk 0:02:47]} 9. b3 {[%clk 0:02:55]}  Nbd7 {[%clk 0:02:45]} 10. Bb2 {[%clk 0:02:54]}  Qc7 {[%clk 0:02:42]} 11. Rc1 {[%clk 0:02:53]}  Re8 {[%clk 0:02:33]} 12. Qd2 {[%clk 0:02:48]}  Bf8 {[%clk 0:02:31]} 13. Rfd1 {[%clk 0:02:41]}  Rb8 {[%clk 0:02:14]} 14. h3 {[%clk 0:02:39]}  Ne5 {[%clk 0:02:12]} 15. f4 {[%clk 0:02:37]}  Ng6 {[%clk 0:02:10]} 16. e4 {[%clk 0:02:33]}  Bd7 {[%clk 0:02:08]} 17. Kh2 {[%clk 0:02:16]}  e5 {[%clk 0:01:50]} 18. Nf5 {[%clk 0:01:54]}  exf4 {[%clk 0:01:39]} 19. gxf4 {[%clk 0:01:53]}  Bxf5 {[%clk 0:01:21]} 20. exf5 {[%clk 0:01:51]}  Nh4 {[%clk 0:01:22]} 21. Nd5 {[%clk 0:01:16]}  Nxd5 {[%clk 0:01:16]} 22. Bxd5 {[%clk 0:01:14]}  Nxf5 {[%clk 0:01:08]} 23. Rg1 {[%clk 0:01:13]}  g6 {[%clk 0:01:07]} 24. Rg5 {[%clk 0:01:08]}  Bg7 {[%clk 0:00:56]} 25. Rxf5 {[%clk 0:01:07]}  Bxb2 {[%clk 0:00:55]} 26. Rxf7 {[%clk 0:00:35]}  Qxf7 {[%clk 0:00:21]} 27. Bxf7+ {[%clk 0:00:36]}  Kxf7 {[%clk 0:00:22]} 28. Qxb2 {[%clk 0:00:33]}  Re3 {[%clk 0:00:20]} 29. Rf1 {[%clk 0:00:29]}  Rbe8 {[%clk 0:00:19]} 30. Rf2 {[%clk 0:00:29]}  R8e6 {[%clk 0:00:15]} 31. f5 {[%clk 0:00:28]}  gxf5 {[%clk 0:00:15]} 32. Rxf5+ {[%clk 0:00:28]}  Ke8 {[%clk 0:00:14]} 33. Qh8+ {[%clk 0:00:26]}  Kd7 {[%clk 0:00:15]} 34. Rf7+ {[%clk 0:00:21]}  Re7 {[%clk 0:00:06]} 35. Qxh7 {[%clk 0:00:21]}  Re2+ {[%clk 0:00:06]} 36. Kg3 {[%clk 0:00:21]}  Re3+ {[%clk 0:00:05]} 37. Kg4 {[%clk 0:00:20]}  Re4+ {[%clk 0:00:05]} 38. Qxe4 {[%clk 0:00:20]}  Rxf7 {[%clk 0:00:06]} 39. Qxb7+ {[%clk 0:00:19]}  Ke6 {[%clk 0:00:06]} 40. Qd5+ {[%clk 0:00:18]} 1-0


[Site "https://www.chess.com"]

[Event "Titled Tuesday Blitz May 30 Late 2023"]
[White "D`Arruda, Ricardo D."]
[Black "Torres Hernandez, Leslie Carolin"]
[WhiteFideId "100692"]
[BlackFideId "8400504"]
[WhiteElo "2507"]
[BlackElo "1920"]
[Result "1-0"]
[Round "10"]
[TimeControl "180+2"]
[Date "2023.05.31"]
[WhiteClock "0:00:39"]
[BlackClock "0:00:02"]

1. e4 {[%clk 0:02:26]}  e6 {[%clk 0:02:57]} 2. d4 {[%clk 0:02:26]}  d5 {[%clk 0:02:58]} 3. Nc3 {[%clk 0:02:25]}  Bb4 {[%clk 0:02:57]} 4. Qg4 {[%clk 0:02:24]}  Nf6 {[%clk 0:02:49]} 5. Qxg7 {[%clk 0:02:24]}  Rg8 {[%clk 0:02:48]} 6. Qh6 {[%clk 0:02:24]}  Rg6 {[%clk 0:02:34]} 7. Qe3 {[%clk 0:02:23]}  Nxe4 {[%clk 0:02:33]} 8. Ne2 {[%clk 0:02:21]}  c5 {[%clk 0:02:21]} 9. a3 {[%clk 0:02:21]}  cxd4 {[%clk 0:02:19]} 10. Qxd4 {[%clk 0:02:21]}  Bc5 {[%clk 0:02:03]} 11. Qh8+ {[%clk 0:02:20]}  Ke7 {[%clk 0:02:02]} 12. Qxd8+ {[%clk 0:02:19]}  Kxd8 {[%clk 0:02:02]} 13. Nxe4 {[%clk 0:02:18]}  dxe4 {[%clk 0:02:03]} 14. g3 {[%clk 0:01:58]}  b6 {[%clk 0:01:49]} 15. Bg2 {[%clk 0:01:57]}  Bb7 {[%clk 0:01:48]} 16. O-O {[%clk 0:01:57]}  Nd7 {[%clk 0:01:42]} 17. b4 {[%clk 0:01:47]}  Bd6 {[%clk 0:01:31]} 18. Bb2 {[%clk 0:01:45]}  Rc8 {[%clk 0:01:30]} 19. c3 {[%clk 0:01:38]}  Ne5 {[%clk 0:01:24]} 20. Rad1 {[%clk 0:01:36]}  Ke7 {[%clk 0:01:22]} 21. Nf4 {[%clk 0:01:35]}  Rgg8 {[%clk 0:01:12]} 22. Rfe1 {[%clk 0:01:35]}  Nf3+ {[%clk 0:01:02]} 23. Bxf3 {[%clk 0:01:35]}  exf3 {[%clk 0:01:02]} 24. Nh5 {[%clk 0:01:26]}  Rg5 {[%clk 0:00:49]} 25. Nf6 {[%clk 0:01:25]}  Bxg3 {[%clk 0:00:35]} 26. hxg3 {[%clk 0:01:09]}  Kxf6 {[%clk 0:00:34]} 27. Rd7 {[%clk 0:01:02]}  Bc6 {[%clk 0:00:16]} 28. c4+ {[%clk 0:01:02]}  Kg6 {[%clk 0:00:11]} 29. Rxa7 {[%clk 0:01:01]}  h5 {[%clk 0:00:08]} 30. Be5 {[%clk 0:00:48]}  h4 {[%clk 0:00:07]} 31. Bf4 {[%clk 0:00:47]}  hxg3 {[%clk 0:00:05]} 32. Bxg5 {[%clk 0:00:45]}  Kxg5 {[%clk 0:00:06]} 33. fxg3 {[%clk 0:00:45]}  Kg4 {[%clk 0:00:05]} 34. Rxf7 {[%clk 0:00:40]}  Rg8 {[%clk 0:00:03]} 35. Kf2 {[%clk 0:00:39]}  Rh8 {[%clk 0:00:02]} 36. Rf4+ {[%clk 0:00:39]}  Kg5 {[%clk 0:00:02]} 37. Rh4 {[%clk 0:00:38]}  Rxh4 {[%clk 0:00:02]} 38. gxh4+ {[%clk 0:00:39]}  Kxh4 {[%clk 0:00:02]} 39. Rxe6 {[%clk 0:00:39]} 1-0


[Site "https://www.chess.com"]

[Event "Titled Tuesday Blitz May 30 Late 2023"]
[White "Ardila, Oscar Humberto"]
[Black "Janaszak, Dawid"]
[WhiteFideId "4404742"]
[BlackFideId "1119206"]
[WhiteElo "1918"]
[BlackElo "2220"]
[Result "0-1"]
[Round "10"]
[TimeControl "180+2"]
[Date "2023.05.31"]
[WhiteClock "0:01:36"]
[BlackClock "0:01:46"]

1. d4 {[%clk 0:02:59]}  d5 {[%clk 0:02:52]} 2. c4 {[%clk 0:03:00]}  c5 {[%clk 0:02:52]} 3. cxd5 {[%clk 0:02:56]}  cxd4 {[%clk 0:02:48]} 4. Qxd4 {[%clk 0:02:56]}  Nc6 {[%clk 0:02:48]} 5. Qc4 {[%clk 0:02:50]}  Ne5 {[%clk 0:02:46]} 6. Qb3 {[%clk 0:02:47]}  Nf6 {[%clk 0:02:43]} 7. Nc3 {[%clk 0:02:45]}  e6 {[%clk 0:02:36]} 8. dxe6 {[%clk 0:02:36]}  Bxe6 {[%clk 0:02:35]} 9. Qxb7 {[%clk 0:02:35]}  Bc5 {[%clk 0:02:14]} 10. Qb5+ {[%clk 0:02:33]}  Nfd7 {[%clk 0:02:13]} 11. Nf3 {[%clk 0:02:28]}  Rb8 {[%clk 0:02:11]} 12. Qa4 {[%clk 0:02:27]}  O-O {[%clk 0:02:06]} 13. Nxe5 {[%clk 0:02:22]}  Nxe5 {[%clk 0:02:07]} 14. e3 {[%clk 0:02:22]}  Rb4 {[%clk 0:01:56]} 15. Qd1 {[%clk 0:02:22]}  Qh4 {[%clk 0:01:56]} 16. g3 {[%clk 0:02:13]}  Qf6 {[%clk 0:01:51]} 17. Bg2 {[%clk 0:02:11]}  Rd8 {[%clk 0:01:46]} 18. Bd2 {[%clk 0:01:51]}  Nd3+ {[%clk 0:01:45]} 19. Ke2 {[%clk 0:01:36]}  Qxf2# {[%clk 0:01:46]} 0-1


[Site "https://www.chess.com"]

[Event "Titled Tuesday Blitz May 30 Late 2023"]
[White "Seletsky, Grigory"]
[Black "Fuentes Godoy, Lilia Ivonne"]
[WhiteFideId "14112191"]
[BlackFideId "5104130"]
[WhiteElo "2491"]
[BlackElo "2096"]
[Result "1-0"]
[Round "10"]
[TimeControl "180+2"]
[Date "2023.05.31"]
[WhiteClock "0:00:26"]
[BlackClock "0:00:01"]

1. e4 {[%clk 0:03:00]}  c5 {[%clk 0:02:59]} 2. Nc3 {[%clk 0:02:59]}  Nc6 {[%clk 0:02:59]} 3. d3 {[%clk 0:03:00]}  g6 {[%clk 0:02:59]} 4. Be3 {[%clk 0:03:00]}  d6 {[%clk 0:02:59]} 5. d4 {[%clk 0:03:00]}  cxd4 {[%clk 0:02:53]} 6. Bxd4 {[%clk 0:03:01]}  e5 {[%clk 0:02:54]} 7. Be3 {[%clk 0:03:00]}  Bg7 {[%clk 0:02:54]} 8. Qd2 {[%clk 0:03:00]}  Nge7 {[%clk 0:02:54]} 9. O-O-O {[%clk 0:03:01]}  Nd4 {[%clk 0:02:50]} 10. Nce2 {[%clk 0:02:51]}  Nec6 {[%clk 0:02:39]} 11. c3 {[%clk 0:02:46]}  Nxe2+ {[%clk 0:02:33]} 12. Nxe2 {[%clk 0:02:45]}  Be6 {[%clk 0:02:33]} 13. Kb1 {[%clk 0:02:42]}  Qa5 {[%clk 0:02:25]} 14. Nc1 {[%clk 0:02:42]}  Rd8 {[%clk 0:02:21]} 15. c4 {[%clk 0:02:40]}  Qxd2 {[%clk 0:02:16]} 16. Rxd2 {[%clk 0:02:40]}  f5 {[%clk 0:02:13]} 17. f3 {[%clk 0:02:39]}  O-O {[%clk 0:01:19]} 18. b3 {[%clk 0:02:36]}  Rf7 {[%clk 0:01:16]} 19. Bd3 {[%clk 0:02:33]}  Nb4 {[%clk 0:00:59]} 20. Bxa7 {[%clk 0:02:16]}  Bh6 {[%clk 0:00:59]} 21. Rdd1 {[%clk 0:02:13]}  Ra8 {[%clk 0:00:35]} 22. Bg1 {[%clk 0:01:52]}  Bxc1 {[%clk 0:00:32]} 23. Kxc1 {[%clk 0:01:50]}  Nxa2+ {[%clk 0:00:28]} 24. Kb2 {[%clk 0:01:49]}  Nb4 {[%clk 0:00:28]} 25. Bb1 {[%clk 0:01:50]}  Ra6 {[%clk 0:00:27]} 26. Be3 {[%clk 0:01:42]}  fxe4 {[%clk 0:00:27]} 27. fxe4 {[%clk 0:01:41]}  Bg4 {[%clk 0:00:28]} 28. Rdf1 {[%clk 0:01:40]}  Be2 {[%clk 0:00:27]} 29. Rxf7 {[%clk 0:01:38]}  Kxf7 {[%clk 0:00:27]} 30. Kc3 {[%clk 0:01:29]}  Na2+ {[%clk 0:00:22]} 31. Kd2 {[%clk 0:01:27]}  Bg4 {[%clk 0:00:21]} 32. h3 {[%clk 0:01:26]}  Be6 {[%clk 0:00:19]} 33. Rf1+ {[%clk 0:01:26]}  Ke8 {[%clk 0:00:18]} 34. Rf6 {[%clk 0:01:13]}  Bf7 {[%clk 0:00:18]} 35. h4 {[%clk 0:01:07]}  Nb4 {[%clk 0:00:18]} 36. Kc3 {[%clk 0:01:05]}  Na2+ {[%clk 0:00:18]} 37. Kb2 {[%clk 0:01:05]}  Nb4 {[%clk 0:00:18]} 38. Bd2 {[%clk 0:01:06]}  Nc6 {[%clk 0:00:15]} 39. Bc3 {[%clk 0:01:05]}  Nd8 {[%clk 0:00:13]} 40. g3 {[%clk 0:01:02]}  Ne6 {[%clk 0:00:13]} 41. Rf2 {[%clk 0:01:01]}  g5 {[%clk 0:00:10]} 42. hxg5 {[%clk 0:00:58]}  Nxg5 {[%clk 0:00:11]} 43. Bd2 {[%clk 0:00:54]}  Ne6 {[%clk 0:00:11]} 44. Be3 {[%clk 0:00:54]}  Bg6 {[%clk 0:00:11]} 45. Rd2 {[%clk 0:00:50]}  Ke7 {[%clk 0:00:11]} 46. Bc2 {[%clk 0:00:47]}  Ra8 {[%clk 0:00:11]} 47. Rf2 {[%clk 0:00:47]}  Rf8 {[%clk 0:00:10]} 48. Rxf8 {[%clk 0:00:47]}  Kxf8 {[%clk 0:00:11]} 49. b4 {[%clk 0:00:46]}  Ke7 {[%clk 0:00:10]} 50. Kc3 {[%clk 0:00:46]}  Kd7 {[%clk 0:00:10]} 51. Ba4+ {[%clk 0:00:46]}  Kc7 {[%clk 0:00:10]} 52. Bc2 {[%clk 0:00:45]}  Kc6 {[%clk 0:00:10]} 53. Kd2 {[%clk 0:00:40]}  b5 {[%clk 0:00:10]} 54. cxb5+ {[%clk 0:00:38]}  Kxb5 {[%clk 0:00:11]} 55. Kc3 {[%clk 0:00:38]}  Nd8 {[%clk 0:00:10]} 56. Bd3+ {[%clk 0:00:36]}  Kc6 {[%clk 0:00:09]} 57. b5+ {[%clk 0:00:34]}  Kb7 {[%clk 0:00:08]} 58. Kb4 {[%clk 0:00:31]}  Ne6 {[%clk 0:00:06]} 59. Bc4 {[%clk 0:00:32]}  Nc7 {[%clk 0:00:06]} 60. b6 {[%clk 0:00:30]}  Na6+ {[%clk 0:00:04]} 61. Ka5 {[%clk 0:00:27]}  Nc5 {[%clk 0:00:03]} 62. Bd5+ {[%clk 0:00:27]}  Kb8 {[%clk 0:00:02]} 63. Bxc5 {[%clk 0:00:27]}  dxc5 {[%clk 0:00:03]} 64. Kb5 {[%clk 0:00:27]}  c4 {[%clk 0:00:01]} 65. Kxc4 {[%clk 0:00:26]} 1-0


[Site "https://www.chess.com"]

[Event "Titled Tuesday Blitz May 30 Late 2023"]
[White "Cardozo Munar, Carlos Eduardo"]
[Black "Le Goff, Ronan"]
[WhiteFideId "4409477"]
[BlackFideId "612073"]
[WhiteElo "2067"]
[BlackElo "2275"]
[Result "0-1"]
[Round "10"]
[TimeControl "180+2"]
[Date "2023.05.31"]
[WhiteClock "0:01:50"]
[BlackClock "0:02:30"]

1. d4 {[%clk 0:03:00]}  Nf6 {[%clk 0:02:53]} 2. Bg5 {[%clk 0:02:59]}  Ne4 {[%clk 0:02:52]} 3. h4 {[%clk 0:02:59]}  d5 {[%clk 0:02:52]} 4. Nd2 {[%clk 0:02:59]}  c5 {[%clk 0:02:52]} 5. Nxe4 {[%clk 0:02:58]}  dxe4 {[%clk 0:02:52]} 6. dxc5 {[%clk 0:02:58]}  Qa5+ {[%clk 0:02:51]} 7. Qd2 {[%clk 0:02:54]}  Qxc5 {[%clk 0:02:49]} 8. O-O-O {[%clk 0:02:53]}  Nc6 {[%clk 0:02:49]} 9. Nh3 {[%clk 0:02:43]}  h6 {[%clk 0:02:47]} 10. Be3 {[%clk 0:02:42]}  Qc4 {[%clk 0:02:45]} 11. Kb1 {[%clk 0:02:39]}  Be6 {[%clk 0:02:44]} 12. b3 {[%clk 0:02:39]}  Qa6 {[%clk 0:02:42]} 13. Nf4 {[%clk 0:02:37]}  Bf5 {[%clk 0:02:36]} 14. Nd5 {[%clk 0:02:20]}  O-O-O {[%clk 0:02:36]} 15. g4 {[%clk 0:01:56]}  e6 {[%clk 0:02:32]} 16. gxf5 {[%clk 0:01:50]}  Rxd5 {[%clk 0:02:31]} 17. Qc3 {[%clk 0:01:50]}  Rxd1+ {[%clk 0:02:31]} 18. Kb2 {[%clk 0:01:50]}  Ba3# {[%clk 0:02:30]} 0-1


[Site "https://www.chess.com"]

[Event "Titled Tuesday Blitz May 30 Late 2023"]
[White "OPQRC"]
[Black "Oliveira, Tiago Batista"]
[BlackFideId "2108291"]
[WhiteElo "2546"]
[BlackElo "1962"]
[Result "1-0"]
[Round "10"]
[TimeControl "180+2"]
[Date "2023.05.31"]
[WhiteClock "0:01:18"]
[BlackClock "0:00:10"]

1. e4 {[%clk 0:03:00]}  e5 {[%clk 0:02:59]} 2. Nf3 {[%clk 0:03:00]}  Nc6 {[%clk 0:02:58]} 3. Bc4 {[%clk 0:03:00]}  Bc5 {[%clk 0:02:57]} 4. b4 {[%clk 0:02:59]}  Bxb4 {[%clk 0:02:57]} 5. c3 {[%clk 0:02:59]}  Ba5 {[%clk 0:02:57]} 6. d4 {[%clk 0:02:59]}  d6 {[%clk 0:02:56]} 7. Qb3 {[%clk 0:02:56]}  Qd7 {[%clk 0:01:41]} 8. O-O {[%clk 0:02:54]}  Bb6 {[%clk 0:01:40]} 9. dxe5 {[%clk 0:02:54]}  Nxe5 {[%clk 0:01:35]} 10. Nxe5 {[%clk 0:02:53]}  dxe5 {[%clk 0:01:35]} 11. Rd1 {[%clk 0:02:47]}  Qe7 {[%clk 0:01:32]} 12. Nd2 {[%clk 0:02:44]}  Bg4 {[%clk 0:01:17]} 13. Nf3 {[%clk 0:02:44]}  Bxf3 {[%clk 0:01:12]} 14. gxf3 {[%clk 0:02:45]}  Nf6 {[%clk 0:01:08]} 15. Ba3 {[%clk 0:02:44]}  c5 {[%clk 0:01:00]} 16. Qb5+ {[%clk 0:02:15]}  Nd7 {[%clk 0:01:00]} 17. Qa4 {[%clk 0:01:38]}  Rd8 {[%clk 0:00:46]} 18. Bb5 {[%clk 0:01:27]}  a6 {[%clk 0:00:41]} 19. Bxd7+ {[%clk 0:01:27]}  Rxd7 {[%clk 0:00:41]} 20. Rd5 {[%clk 0:01:27]}  O-O {[%clk 0:00:13]} 21. Qxd7 {[%clk 0:01:21]}  Qh4 {[%clk 0:00:11]} 22. Qg4 {[%clk 0:01:18]}  Qxf2+ {[%clk 0:00:10]} 23. Kxf2 {[%clk 0:01:18]} 1-0


[Site "https://www.chess.com"]

[Event "Titled Tuesday Blitz May 30 Late 2023"]
[White "micke12a"]
[Black "Bashkansky, Ethan"]
[BlackFideId "2071533"]
[WhiteElo "2397"]
[BlackElo "2321"]
[Result "1-0"]
[Round "10"]
[TimeControl "180+2"]
[Date "2023.05.31"]
[WhiteClock "0:01:30"]
[BlackClock "0:00:01"]

1. e4 {[%clk 0:02:58]}  c6 {[%clk 0:02:59]} 2. d4 {[%clk 0:02:57]}  d5 {[%clk 0:03:00]} 3. e5 {[%clk 0:02:57]}  c5 {[%clk 0:03:01]} 4. dxc5 {[%clk 0:02:55]}  Nc6 {[%clk 0:03:01]} 5. Nf3 {[%clk 0:02:54]}  Bg4 {[%clk 0:03:01]} 6. Bb5 {[%clk 0:02:54]}  e6 {[%clk 0:03:00]} 7. b4 {[%clk 0:02:53]}  Ne7 {[%clk 0:02:58]} 8. Bb2 {[%clk 0:02:52]}  b6 {[%clk 0:02:35]} 9. Bxc6+ {[%clk 0:02:42]}  Nxc6 {[%clk 0:02:34]} 10. b5 {[%clk 0:02:42]}  Na5 {[%clk 0:02:32]} 11. c6 {[%clk 0:02:41]}  Nc4 {[%clk 0:02:24]} 12. Bd4 {[%clk 0:02:39]}  Bxf3 {[%clk 0:02:09]} 13. Qxf3 {[%clk 0:02:37]}  Qg5 {[%clk 0:02:09]} 14. O-O {[%clk 0:02:27]}  Nxe5 {[%clk 0:02:07]} 15. Qc3 {[%clk 0:02:26]}  Nc4 {[%clk 0:01:27]} 16. f4 {[%clk 0:02:24]}  Qg4 {[%clk 0:01:14]} 17. Nd2 {[%clk 0:02:17]}  Nxd2 {[%clk 0:00:58]} 18. Qxd2 {[%clk 0:02:16]}  Bd6 {[%clk 0:00:44]} 19. h3 {[%clk 0:02:06]}  Qg3 {[%clk 0:00:39]} 20. Rf3 {[%clk 0:02:05]}  Qh4 {[%clk 0:00:36]} 21. Bxg7 {[%clk 0:02:00]}  Rg8 {[%clk 0:00:36]} 22. Be5 {[%clk 0:01:56]}  Qh5 {[%clk 0:00:23]} 23. Qe2 {[%clk 0:01:45]}  Bc5+ {[%clk 0:00:20]} 24. Kh1 {[%clk 0:01:46]}  f5 {[%clk 0:00:12]} 25. c4 {[%clk 0:01:40]}  dxc4 {[%clk 0:00:07]} 26. Qxc4 {[%clk 0:01:38]}  Kf7 {[%clk 0:00:06]} 27. Rd1 {[%clk 0:01:36]}  Qg6 {[%clk 0:00:05]} 28. Qe2 {[%clk 0:01:32]}  Rad8 {[%clk 0:00:04]} 29. Rfd3 {[%clk 0:01:31]}  Rxd3 {[%clk 0:00:01]} 30. Rxd3 {[%clk 0:01:32]}  Qg3 {[%clk 0:00:01]} 31. Rxg3 {[%clk 0:01:29]}  Rxg3 {[%clk 0:00:01]} 32. Qh5+ {[%clk 0:01:30]} 1-0


[Site "https://www.chess.com"]

[Event "Titled Tuesday Blitz May 30 Late 2023"]
[White "Florianovitz, Derlei Alex"]
[Black "Campos, Maria Jose"]
[WhiteFideId "2114178"]
[BlackFideId "146803"]
[WhiteElo "1953"]
[BlackElo "2170"]
[Result "1-0"]
[Round "10"]
[TimeControl "180+2"]
[Date "2023.05.31"]
[WhiteClock "0:00:09"]
[BlackClock "0:00:57"]

1. e4 {[%clk 0:03:00]}  e5 {[%clk 0:02:57]} 2. Nf3 {[%clk 0:03:00]}  Nc6 {[%clk 0:02:58]} 3. Bb5 {[%clk 0:03:00]}  a6 {[%clk 0:02:57]} 4. Ba4 {[%clk 0:03:00]}  d6 {[%clk 0:02:58]} 5. O-O {[%clk 0:02:59]}  Bd7 {[%clk 0:02:55]} 6. c3 {[%clk 0:02:59]}  Nf6 {[%clk 0:02:55]} 7. Re1 {[%clk 0:02:58]}  Be7 {[%clk 0:02:55]} 8. h3 {[%clk 0:02:58]}  O-O {[%clk 0:02:54]} 9. d4 {[%clk 0:02:58]}  b5 {[%clk 0:02:42]} 10. Bb3 {[%clk 0:02:57]}  Re8 {[%clk 0:02:42]} 11. Nbd2 {[%clk 0:02:51]}  Bf8 {[%clk 0:02:40]} 12. Nf1 {[%clk 0:02:45]}  Na5 {[%clk 0:02:39]} 13. Bc2 {[%clk 0:02:44]}  c5 {[%clk 0:02:38]} 14. Ng3 {[%clk 0:02:25]}  Nc4 {[%clk 0:02:37]} 15. b3 {[%clk 0:02:19]}  Nb6 {[%clk 0:02:33]} 16. Be3 {[%clk 0:02:03]}  g6 {[%clk 0:02:31]} 17. Qd2 {[%clk 0:01:50]}  Qc7 {[%clk 0:02:31]} 18. Rac1 {[%clk 0:01:48]}  c4 {[%clk 0:02:30]} 19. Bh6 {[%clk 0:01:24]}  Bc8 {[%clk 0:02:25]} 20. Bxf8 {[%clk 0:01:22]}  Rxf8 {[%clk 0:02:25]} 21. Qh6 {[%clk 0:01:20]}  Bb7 {[%clk 0:02:18]} 22. d5 {[%clk 0:01:18]}  Nbd7 {[%clk 0:02:16]} 23. Ng5 {[%clk 0:01:12]}  Kh8 {[%clk 0:02:13]} 24. Re3 {[%clk 0:01:10]}  Qd8 {[%clk 0:02:11]} 25. Rf3 {[%clk 0:01:06]}  Qe7 {[%clk 0:02:12]} 26. bxc4 {[%clk 0:00:50]}  bxc4 {[%clk 0:02:11]} 27. Ba4 {[%clk 0:00:49]}  Rg8 {[%clk 0:01:45]} 28. Bxd7 {[%clk 0:00:47]}  Rg7 {[%clk 0:01:45]} 29. Ba4 {[%clk 0:00:32]}  Ng8 {[%clk 0:01:45]} 30. Qh4 {[%clk 0:00:32]}  h6 {[%clk 0:01:41]} 31. Rb1 {[%clk 0:00:16]}  Ra7 {[%clk 0:01:40]} 32. Bc6 {[%clk 0:00:14]}  Bc8 {[%clk 0:01:29]} 33. Rb8 {[%clk 0:00:12]}  Rc7 {[%clk 0:01:29]} 34. Nxf7+ {[%clk 0:00:09]}  Rxf7 {[%clk 0:01:28]} 35. Qxe7 {[%clk 0:00:07]}  Rfxe7 {[%clk 0:01:23]} 36. Rf8 {[%clk 0:00:08]}  Be6 {[%clk 0:01:12]} 37. dxe6 {[%clk 0:00:07]}  Rg7 {[%clk 0:01:11]} 38. Bd5 {[%clk 0:00:06]}  Kh7 {[%clk 0:01:11]} 39. e7 {[%clk 0:00:04]}  Nxe7 {[%clk 0:01:11]} 40. Rfd8 {[%clk 0:00:03]}  Nxd5 {[%clk 0:01:04]} 41. exd5 {[%clk 0:00:04]}  Rge7 {[%clk 0:01:04]} 42. Rxd6 {[%clk 0:00:04]}  e4 {[%clk 0:01:03]} 43. Re6 {[%clk 0:00:04]}  Red7 {[%clk 0:01:02]} 44. d6 {[%clk 0:00:04]}  Ra7 {[%clk 0:01:00]} 45. Rbe8 {[%clk 0:00:03]}  Kg7 {[%clk 0:00:57]} 46. R8e7+ {[%clk 0:00:03]}  Kf8 {[%clk 0:00:57]} 47. Rxd7 {[%clk 0:00:03]}  Rxd7 {[%clk 0:00:58]} 48. Nxe4 {[%clk 0:00:04]}  Kf7 {[%clk 0:00:55]} 49. Rf6+ {[%clk 0:00:05]}  Kg7 {[%clk 0:00:55]} 50. Re6 {[%clk 0:00:05]}  Kf7 {[%clk 0:00:55]} 51. Re7+ {[%clk 0:00:06]}  Rxe7 {[%clk 0:00:55]} 52. dxe7 {[%clk 0:00:06]}  Kxe7 {[%clk 0:00:56]} 53. Kf1 {[%clk 0:00:07]}  Ke6 {[%clk 0:00:56]} 54. Ke2 {[%clk 0:00:07]}  Kd5 {[%clk 0:00:57]} 55. Ke3 {[%clk 0:00:07]}  a5 {[%clk 0:00:57]} 56. a4 {[%clk 0:00:07]}  g5 {[%clk 0:00:57]} 57. g4 {[%clk 0:00:07]}  Ke5 {[%clk 0:00:56]} 58. f3 {[%clk 0:00:07]}  Kd5 {[%clk 0:00:57]} 59. Nf6+ {[%clk 0:00:08]}  Ke5 {[%clk 0:00:57]} 60. Ng8 {[%clk 0:00:08]}  Kd5 {[%clk 0:00:57]} 61. Nxh6 {[%clk 0:00:09]} 1-0


[Site "https://www.chess.com"]

[Event "Titled Tuesday Blitz May 30 Late 2023"]
[White "Kovacevic, Radmila"]
[Black "LangesNasenhaar"]
[WhiteFideId "933171"]
[WhiteElo "2194"]
[BlackElo "2429"]
[Result "1-0"]
[Round "10"]
[TimeControl "180+2"]
[Date "2023.05.31"]
[WhiteClock "0:00:31"]
[BlackClock "0:01:40"]

1. e4 {[%clk 0:03:00]}  Nf6 {[%clk 0:02:56]} 2. Nf3 {[%clk 0:03:01]}  Nxe4 {[%clk 0:02:56]} 3. Nc3 {[%clk 0:02:58]}  Nxc3 {[%clk 0:02:55]} 4. dxc3 {[%clk 0:02:59]}  d6 {[%clk 0:02:55]} 5. Bd3 {[%clk 0:02:59]}  e5 {[%clk 0:02:51]} 6. h3 {[%clk 0:02:57]}  Be7 {[%clk 0:02:52]} 7. Be3 {[%clk 0:02:54]}  O-O {[%clk 0:02:51]} 8. Qd2 {[%clk 0:02:54]}  f5 {[%clk 0:02:50]} 9. Bc4+ {[%clk 0:02:50]}  Kh8 {[%clk 0:02:50]} 10. Bg5 {[%clk 0:02:48]}  c6 {[%clk 0:02:46]} 11. h4 {[%clk 0:02:34]}  d5 {[%clk 0:02:43]} 12. Bb3 {[%clk 0:02:35]}  e4 {[%clk 0:02:43]} 13. Ne5 {[%clk 0:02:32]}  Qd6 {[%clk 0:02:38]} 14. f4 {[%clk 0:02:31]}  exf3 {[%clk 0:02:33]} 15. Nxf3 {[%clk 0:02:29]}  h6 {[%clk 0:02:29]} 16. Bf4 {[%clk 0:02:23]}  Qe6+ {[%clk 0:02:27]} 17. Kf1 {[%clk 0:02:21]}  Bd6 {[%clk 0:02:22]} 18. Re1 {[%clk 0:02:12]}  Qf6 {[%clk 0:02:20]} 19. Bg5 {[%clk 0:01:31]}  Qg6 {[%clk 0:02:13]} 20. h5 {[%clk 0:01:28]}  Qh7 {[%clk 0:02:05]} 21. Be7 {[%clk 0:01:20]}  Bxe7 {[%clk 0:02:05]} 22. Rxe7 {[%clk 0:01:20]}  Nd7 {[%clk 0:02:05]} 23. Nh4 {[%clk 0:01:19]}  Nc5 {[%clk 0:01:52]} 24. Ng6+ {[%clk 0:01:16]}  Kg8 {[%clk 0:01:52]} 25. Qe3 {[%clk 0:00:45]}  Ne4 {[%clk 0:01:48]} 26. Qd4 {[%clk 0:00:32]}  b6 {[%clk 0:01:40]} 27. Bxd5+ {[%clk 0:00:31]} 1-0


[Site "https://www.chess.com"]

[Event "Titled Tuesday Blitz May 30 Late 2023"]
[White "Schut, Han"]
[Black "Sadilek, Peter"]
[WhiteFideId "1005561"]
[BlackFideId "1616439"]
[WhiteElo "2024"]
[BlackElo "2227"]
[Result "0-1"]
[Round "10"]
[TimeControl "180+2"]
[Date "2023.05.31"]
[WhiteClock "0:00:29"]
[BlackClock "0:00:53"]

1. e4 {[%clk 0:03:00]}  d5 {[%clk 0:02:47]} 2. exd5 {[%clk 0:03:00]}  Nf6 {[%clk 0:02:46]} 3. Bb5+ {[%clk 0:02:59]}  Nbd7 {[%clk 0:02:46]} 4. d4 {[%clk 0:02:57]}  a6 {[%clk 0:02:46]} 5. Bxd7+ {[%clk 0:02:50]}  Qxd7 {[%clk 0:02:44]} 6. c4 {[%clk 0:02:51]}  b5 {[%clk 0:02:45]} 7. b3 {[%clk 0:02:51]}  bxc4 {[%clk 0:02:43]} 8. bxc4 {[%clk 0:02:51]}  c6 {[%clk 0:02:44]} 9. dxc6 {[%clk 0:02:46]}  Qxc6 {[%clk 0:02:45]} 10. Qf3 {[%clk 0:02:41]}  Qxc4 {[%clk 0:02:23]} 11. Qxa8 {[%clk 0:02:39]}  Qxc1+ {[%clk 0:02:23]} 12. Ke2 {[%clk 0:02:38]}  Qc4+ {[%clk 0:02:11]} 13. Ke1 {[%clk 0:02:28]}  e5 {[%clk 0:02:08]} 14. dxe5 {[%clk 0:02:10]}  Bb4+ {[%clk 0:02:06]} 15. Nd2 {[%clk 0:02:11]}  Bxd2+ {[%clk 0:01:53]} 16. Kxd2 {[%clk 0:02:10]}  Qd4+ {[%clk 0:01:53]} 17. Kc2 {[%clk 0:02:04]}  O-O {[%clk 0:01:54]} 18. Qf3 {[%clk 0:01:31]}  Bg4 {[%clk 0:01:35]} 19. exf6 {[%clk 0:00:48]}  Rc8+ {[%clk 0:01:29]} 20. Kb3 {[%clk 0:00:45]}  Be6+ {[%clk 0:01:20]} 21. Ka3 {[%clk 0:00:42]}  Qc5+ {[%clk 0:01:03]} 22. Kb2 {[%clk 0:00:32]}  Qb4+ {[%clk 0:01:01]} 23. Qb3 {[%clk 0:00:32]}  Bxb3 {[%clk 0:01:00]} 24. axb3 {[%clk 0:00:33]}  Qc3+ {[%clk 0:00:58]} 25. Ka2 {[%clk 0:00:29]}  Rc5 {[%clk 0:00:53]} 0-1


[Site "https://www.chess.com"]